Department Family,Entity,Date,Expense Type,Expense area,Supplier,Transaction Number,Amount in Sterling �s incl VAT ,Supplier VAT Registration number
NHS,Glos Hospitals NHS Foundation Trust,06/12/2022,Finished processed goods,Inventories,Alliance Healthcare,000417-112,"25,095.28", 
NHS,Glos Hospitals NHS Foundation Trust,13/12/2022,Finished processed goods,Inventories,Roche Products Limited,000419-107,"79,363.20", 
NHS,Glos Hospitals NHS Foundation Trust,13/12/2022,Finished processed goods,Inventories,Roche Products Limited,000419-108,"66,804.24", 
NHS,Glos Hospitals NHS Foundation Trust,13/12/2022,Finished processed goods,Inventories,Roche Products Limited,000419-109,"34,640.93", 
NHS,Glos Hospitals NHS Foundation Trust,13/12/2022,Finished processed goods,Inventories,Alliance Healthcare,000419-138,"40,475.88", 
NHS,Glos Hospitals NHS Foundation Trust,13/12/2022,Finished processed goods,Inventories,Janssen Cilag Limited,000419-212,"83,462.40", 
NHS,Glos Hospitals NHS Foundation Trust,13/12/2022,Finished processed goods,Inventories,Qualasept Ltd t/a Bath ASU,000419-216,"33,460.70", 
NHS,Glos Hospitals NHS Foundation Trust,13/12/2022,Finished processed goods,Inventories,Qualasept Ltd t/a Bath ASU,000419-217,"54,867.84", 
NHS,Glos Hospitals NHS Foundation Trust,13/12/2022,Finished processed goods,Inventories,Qualasept Ltd t/a Bath ASU,000419-218,"71,466.24", 
NHS,Glos Hospitals NHS Foundation Trust,13/12/2022,Finished processed goods,Inventories,Bayer,000420-1,"50,185.08", 
NHS,Glos Hospitals NHS Foundation Trust,13/12/2022,Finished processed goods,Inventories,Alloga UK Limited,000420-130,"27,120.00", 
NHS,Glos Hospitals NHS Foundation Trust,13/12/2022,Finished processed goods,Inventories,Bayer,000420-2,"52,466.22", 
NHS,Glos Hospitals NHS Foundation Trust,13/12/2022,Finished processed goods,Inventories,Bristol Myers Squibb Pharmaceuticals Limited,000420-86,"55,062.00", 
NHS,Glos Hospitals NHS Foundation Trust,13/12/2022,Finished processed goods,Inventories,Alloga UK Limited,000423-101,"45,000.00", 
NHS,Glos Hospitals NHS Foundation Trust,13/12/2022,Finished processed goods,Inventories,Roche Products Limited,000423-9,"198,455.16", 
NHS,Glos Hospitals NHS Foundation Trust,13/12/2022,Finished processed goods,Inventories,Aah Pharmaceuticals Limited,000424-59,"32,404.32", 
NHS,Glos Hospitals NHS Foundation Trust,20/12/2022,Finished processed goods,Inventories,Bristol Myers Squibb Pharmaceuticals Limited,000428-111,"33,264.00", 
NHS,Glos Hospitals NHS Foundation Trust,20/12/2022,Finished processed goods,Inventories,Alloga UK Limited,000428-129,"29,160.00", 
NHS,Glos Hospitals NHS Foundation Trust,20/12/2022,Finished processed goods,Inventories,Bayer,000428-161,"49,272.62", 
NHS,Glos Hospitals NHS Foundation Trust,20/12/2022,Finished processed goods,Inventories,Bayer,000428-163,"49,272.62", 
NHS,Glos Hospitals NHS Foundation Trust,20/12/2022,Finished processed goods,Inventories,Roche Products Limited,000428-168,"74,284.61", 
NHS,Glos Hospitals NHS Foundation Trust,20/12/2022,Finished processed goods,Inventories,Alloga UK Limited,000428-221,"45,000.00", 
NHS,Glos Hospitals NHS Foundation Trust,20/12/2022,Finished processed goods,Inventories,Alloga UK Limited,000428-222,"26,334.00", 
NHS,Glos Hospitals NHS Foundation Trust,20/12/2022,Finished processed goods,Inventories,Janssen Cilag Limited,000428-228,"25,960.42", 
NHS,Glos Hospitals NHS Foundation Trust,20/12/2022,Finished processed goods,Inventories,Alloga UK Limited,000429-136,"45,000.00", 
NHS,Glos Hospitals NHS Foundation Trust,20/12/2022,Finished processed goods,Inventories,Alloga UK Limited,000429-137,"27,120.00", 
NHS,Glos Hospitals NHS Foundation Trust,20/12/2022,Finished processed goods,Inventories,Qualasept Ltd t/a Bath ASU,000429-145,"74,909.22", 
NHS,Glos Hospitals NHS Foundation Trust,06/12/2022,External Contracts : Other,Smartcare,InterSystems,936643,"80,016.16", 
NHS,Glos Hospitals NHS Foundation Trust,06/12/2022,External Contracts : Other,Smartcare,InterSystems,936645,"80,016.16", 
NHS,Glos Hospitals NHS Foundation Trust,06/12/2022,External Contracts : Other,Smartcare,InterSystems,936651,"80,016.16", 
NHS,Glos Hospitals NHS Foundation Trust,06/12/2022,External Contracts : Other,Smartcare,InterSystems,936653,"80,016.16", 
NHS,Glos Hospitals NHS Foundation Trust,13/12/2022,Purchase Computers/Systems,Capital Project Control,Auditdata Ltd,936840,"26,811.60", 
NHS,Glos Hospitals NHS Foundation Trust,06/12/2022,Drugs - Passthrough Expenditure,Hereford Clinic Rental,HA95059 Wye Valley NHS Trust,937278,"441,975.88", 
NHS,Glos Hospitals NHS Foundation Trust,16/12/2022,Contract : Other External,UC & Dividend,NHS Gloucestershire Managed Services,938065,"5,841,775.56", 
NHS,Glos Hospitals NHS Foundation Trust,06/12/2022,Minor Works,GHP Contract,Apleona PPP Limited,939781,"30,363.32", 
NHS,Glos Hospitals NHS Foundation Trust,06/12/2022,Contractual Clinical Services,Renal Dialysis,B Braun Avitum UK Limited,940443,"132,615.00", 
NHS,Glos Hospitals NHS Foundation Trust,06/12/2022,Computer Software / License  Fees,Smartcare,InterSystems,940607,"62,260.86", 
NHS,Glos Hospitals NHS Foundation Trust,13/12/2022,Purchase Computers/Systems,Capital Project Control,XMA Limited,941054,"105,840.00", 
NHS,Glos Hospitals NHS Foundation Trust,06/12/2022,Contractual Clinical Services,Renal Dialysis,B Braun Avitum UK Limited,941187,"56,798.98", 
NHS,Glos Hospitals NHS Foundation Trust,06/12/2022,Non - Healthcare - NHS Trusts,Hereford Clinic Rental,HA95059 Wye Valley NHS Trust,941190,"155,586.00", 
NHS,Glos Hospitals NHS Foundation Trust,20/12/2022,X-Ray Equipment : Maintenance,Breast Screening - CGH,Hologic UK Limited,941413,"43,740.00", 
NHS,Glos Hospitals NHS Foundation Trust,06/12/2022,Purchase Computers/Systems,Capital Project Control,XMA Limited,941449,"52,920.00", 
NHS,Glos Hospitals NHS Foundation Trust,06/12/2022,Computer Software / License  Fees,Smartcare,InterSystems,941468,"-62,260.86", 
NHS,Glos Hospitals NHS Foundation Trust,06/12/2022,External Contracts : Other,Radiography,Cobalt Health,941622,"74,400.00", 
NHS,Glos Hospitals NHS Foundation Trust,06/12/2022,External Consultancy Fees,Financial Management,KPMG LLP,941668,"44,695.20", 
NHS,Glos Hospitals NHS Foundation Trust,06/12/2022,External Contracts : Other,Radiography,Cobalt Health,941777,"72,000.00", 
NHS,Glos Hospitals NHS Foundation Trust,13/12/2022,External Consultancy Fees,Strategy & Transformation,exi Project Management South Limited,941785,"48,934.46", 
NHS,Glos Hospitals NHS Foundation Trust,20/12/2022,Consultant Secondment,Consultants - Rheumatology,HA95727 Great Western Hosp NHS Found. Trust,942064,"33,514.81", 
NHS,Glos Hospitals NHS Foundation Trust,06/12/2022,Finished processed goods,Inventories,Janssen Cilag Limited,942124,"83,462.40", 
NHS,Glos Hospitals NHS Foundation Trust,06/12/2022,Finished processed goods,Inventories,Bayer,942126,"49,272.62", 
NHS,Glos Hospitals NHS Foundation Trust,20/12/2022,Medical & Surgical Equipment : General,Cardiology Laboratory,Abbott Medical UK Limited,942295,"41,400.00", 
NHS,Glos Hospitals NHS Foundation Trust,06/12/2022,Colour Connection,Payables - Manual,Colour Connection,942367,"39,838.21", 
NHS,Glos Hospitals NHS Foundation Trust,06/12/2022,NHS Logistics control,Payables - Manual,Supply Chain Coordination Ltd - Consumables,942484,"70,061.79", 
NHS,Glos Hospitals NHS Foundation Trust,06/12/2022,Rates,Rates - GRH,Gloucester City Council,942491,"209,920.00", 
NHS,Glos Hospitals NHS Foundation Trust,06/12/2022,Rates,Rates - CGH,Cheltenham Borough Council,942494,"90,624.00", 
NHS,Glos Hospitals NHS Foundation Trust,06/12/2022,NHS Logistics control,Payables - Manual,Supply Chain Coordination Ltd - Consumables,942535,"37,255.43", 
NHS,Glos Hospitals NHS Foundation Trust,13/12/2022,Admin & Clerical - Agency,EPR Project Revenue,Ideal Health Consultants Limited,942754,"274,716.00", 
NHS,Glos Hospitals NHS Foundation Trust,20/12/2022,Medical & Surgical Equipment : General,Theatre Admin GRH,CMR Surgical Limited,942756,"61,350.00", 
NHS,Glos Hospitals NHS Foundation Trust,13/12/2022,NHS Logistics control,Payables - Manual,Supply Chain Coordination Ltd - Consumables,942799,"110,789.40", 
NHS,Glos Hospitals NHS Foundation Trust,13/12/2022,Purchase Computers/Systems,Capital Project Control,Insight Direct (UK) Limited,942857,"39,000.00", 
NHS,Glos Hospitals NHS Foundation Trust,13/12/2022,Building - External Contracts,Capital Project Control,Kier Infrastructure & Overseas Limited,942957,"3,013,983.24", 
NHS,Glos Hospitals NHS Foundation Trust,13/12/2022,Lease Rents,Shared Services-Admin,Regina Realty Limited,942964,"60,000.00", 
NHS,Glos Hospitals NHS Foundation Trust,09/12/2022,Barclay Card,Payables - Manual,Barclaycard Commercial,943181,"108,305.42", 
NHS,Glos Hospitals NHS Foundation Trust,13/12/2022,Computer Maintenance,Clinical Systems,Royal Cornwall Hospitals NHS Trust,943476,"30,000.00", 
NHS,Glos Hospitals NHS Foundation Trust,13/12/2022,Non - Healthcare - NHS Trusts,Hereford Clinic Rental,HA95059 Wye Valley NHS Trust,943771,"155,586.00", 
NHS,Glos Hospitals NHS Foundation Trust,13/12/2022,Purchase Computers/Systems,Capital Project Control,XMA Limited,943779,"43,236.00", 
NHS,Glos Hospitals NHS Foundation Trust,20/12/2022,Purchase Computers/Systems,Capital Project Control,Insight Direct (UK) Limited,943848,"58,047.11", 
NHS,Glos Hospitals NHS Foundation Trust,13/12/2022,Allocate,Payables - Manual,ID Medical Group Limited,943948,"55,008.00", 
NHS,Glos Hospitals NHS Foundation Trust,20/12/2022,Computer Software / License  Fees,Smartcare,InterSystems,943998,"61,668.53", 
NHS,Glos Hospitals NHS Foundation Trust,20/12/2022,Computer Software / License  Fees,Smartcare,InterSystems,943999,"61,668.53", 
NHS,Glos Hospitals NHS Foundation Trust,20/12/2022,Computer Software / License  Fees,Smartcare,InterSystems,944000,"61,668.53", 
NHS,Glos Hospitals NHS Foundation Trust,20/12/2022,Computer Software / License  Fees,Smartcare,InterSystems,944001,"61,668.53", 
NHS,Glos Hospitals NHS Foundation Trust,20/12/2022,Implant Procedures,Cardiology Laboratory,Medtronic Limited,944069,"27,840.00", 
NHS,Glos Hospitals NHS Foundation Trust,16/12/2022,Contract : Other External,UC & Dividend,NHS Gloucestershire Managed Services,944077,"-5,841,775.56", 
NHS,Glos Hospitals NHS Foundation Trust,16/12/2022,Contract : Other External,UC & Dividend,NHS Gloucestershire Managed Services,944078,"5,841,775.56", 
NHS,Glos Hospitals NHS Foundation Trust,16/12/2022,Contract : Other External,UC & Dividend,NHS Gloucestershire Managed Services,944079,"-5,841,775.56", 
NHS,Glos Hospitals NHS Foundation Trust,16/12/2022,Contract : Other External,UC & Dividend,NHS Gloucestershire Managed Services,944080,"5,841,775.56", 
NHS,Glos Hospitals NHS Foundation Trust,20/12/2022,Computer Software / License  Fees,Smartcare,InterSystems,944091,"61,668.53", 
NHS,Glos Hospitals NHS Foundation Trust,20/12/2022,Computer Software / License  Fees,Smartcare,InterSystems,944092,"61,668.53", 
NHS,Glos Hospitals NHS Foundation Trust,20/12/2022,Computer Software / License  Fees,Smartcare,InterSystems,944093,"61,668.53", 
NHS,Glos Hospitals NHS Foundation Trust,20/12/2022,Contractual Clinical Services,Renal Dialysis,B Braun Avitum UK Limited,944100,"190,406.24", 
NHS,Glos Hospitals NHS Foundation Trust,20/12/2022,Computer Software / License  Fees,Roster Team,Softcat Ltd,944105,"302,355.60", 
NHS,Glos Hospitals NHS Foundation Trust,20/12/2022,Computer Software / License  Fees,Smartcare,InterSystems,944114,"61,668.53", 
NHS,Glos Hospitals NHS Foundation Trust,20/12/2022,Contract : Other External,UC & Dividend,NHS Gloucestershire Managed Services,944218,"980,716.16", 
NHS,Glos Hospitals NHS Foundation Trust,20/12/2022,Contract : Other External,GHP Contract,Gloucester Healthcare Partnership Limited,944242,"645,707.41", 
NHS,Glos Hospitals NHS Foundation Trust,20/12/2022,Building - External Contracts,Capital Project Control,Kier Infrastructure & Overseas Limited,944248,"2,447,095.45", 
NHS,Glos Hospitals NHS Foundation Trust,20/12/2022,Commercial Sector,Main Theatre - Non Pay only,Genmed.me Limited,944270,"53,612.40", 
NHS,Glos Hospitals NHS Foundation Trust,16/12/2022,Clinical Negligence,Trustwide Finance,NHS Resolution,944337,"1,937,434.70", 
NHS,Glos Hospitals NHS Foundation Trust,20/12/2022,Rent,Clinical Academy - Undergraduate Management,Markey Student Property Ltd,944347,"65,029.44", 
NHS,Glos Hospitals NHS Foundation Trust,20/12/2022,Allocate,Payables - Manual,ID Medical Group Limited,944358,"45,310.80", 
NHS,Glos Hospitals NHS Foundation Trust,20/12/2022,Rent,Clinical Academy - Undergraduate Management,Markey Student Property Ltd,944395,"150,536.72", 
NHS,Glos Hospitals NHS Foundation Trust,20/12/2022,X-Ray Equipment : Purchases,Nuclear Medicine,De Lage Landen Leasing Limited,944510,"42,909.05", 
NHS,Glos Hospitals NHS Foundation Trust,20/12/2022,Contract : Other External,GHP Contract,Gloucester Healthcare Partnership Limited,944548,"27,774.06", 
